[Event "Sardinia World Festival-A 2024"]
[Site "Orosei"]
[Date "2024.04.30"]
[Round "4.19"]
[White "Girel, Joseph"]
[Black "Lewtak, Damian"]
[Result "0-1"]
[ECO "B90"]
[WhiteElo "2479"]
[BlackElo "2343"]
[Annotator "TA"]
[PlyCount "116"]
[EventDate "2024.04.26"]
[EventType "swiss"]
[EventCountry "ITA"]
[SourceTitle "playchess.com"]
[Source "ChessBase"]
[SourceQuality "1"]
[TimeControl "40/5400+30:1800+30"]

{[%evp 50,116,116,106,87,39,25,53,45,14,19,-6,25,-5,0,0,0,0,0,0,0,0,-11,0,0,-64,0,0,0,0,0,-56,0,-65,0,0,0,-16,0,-86,-33,-193,-100,-112,-106,-102,-38,-31,-37,-190,-181,-352,-331,-473,-440,-492,-442,-535,-521,-639,-637,-689,-678,-1506,-1257,-29976,-29977,-29964,-29962]} 1. e4 {[%emt 0:02:46]} c5 {[%emt 0:00:04]} 2. Nf3 {[%emt 0:00:21]} d6 {[%emt 0:00:05]} 3. d4 {[%emt 0:00:27]} cxd4 {[%emt 0:00:07]} 4. Nxd4 {[%emt 0:00:11]} Nf6 {[%emt 0:00:05]} 5. Nc3 {[%emt 0:00:37]} a6 {[%emt 0:00:05]} 6. Be3 {[%emt 0:00:50]} e5 {[%emt 0:00:06]} 7. Nb3 {[%emt 0:00:22]} Be7 {[%emt 0:00:47]} 8. h3 {[%emt 0:00:09] B90: Sicilian Najdorf: Unusual White 6th moves, 6 Be3 Ng4 and 6 Be3 e5.} Be6 {[%emt 0:04:06]} 9. f4 {[%emt 0:01:46]} exf4 {[%emt 0:06:10]} 10. Bxf4 {[%emt 0:00:21]} Nc6 {[%emt 0:00:29]} 11. Qe2 {[%emt 0:00:23]} Nd7 {[%emt 0:05:35]} 12. O-O-O {[%emt 0:04:08]} Nde5 {[%emt 0:01:32]} 13. Kb1 {[%emt 0:07:23]} Rc8 {[%emt 0:04:26]} 14. Nd5 {[%emt 0:03:31]} b5 {[%emt 0:06:51]} 15. Qe3 {[%emt 0:02:34]} O-O {[%emt 0:04:17]} 16. Be2 $146 {[%emt 0:01:37]} ({Predecessor:} 16. h4 Bxh4 17. Be2 Re8 18. g3 Be7 19. g4 Bh4 20. Qh3 Bxd5 21. exd5 Ng6 22. Bc1 {1-0 Kasyan,A (2375)-Sirobaba,F (2366) UKR-ch28 email 2017}) 16... Re8 {[%emt 0:01:37]} 17. Rhf1 {[%emt 0:06:28]} Rb8 {[%emt 0:11:12]} 18. Nd2 {[%emt 0:15:47]} Bf8 {[%emt 0:07:02]} 19. Nf3 {[%emt 0:03:53]} Nc4 {[%emt 0:08:11]} 20. Bxc4 {[%emt 0:03:11]} bxc4 {[%emt 0:00:05]} 21. Qc3 {[%emt 0:01:36]} Bxd5 {[%emt 0:09:59]} 22. exd5 {[%emt 0:00:49]} Na7 {[%emt 0:00:07]} 23. Qxc4 {[%emt 0:03:36]} Nb5 {[%emt 0:01:01]} 24. Ka1 {[%emt 0:01:39]} Qb6 {[%emt 0:04:27]} 25. Qd3 {[%emt 0:04:06]} g6 {[%emt 0:07:17]} 26. c4 {[%emt 0:03:43]} Nc7 {[%emt 0:02:51]} 27. Bc1 {[%emt 0:03:11]} (27. Rd2 $16) 27... Bg7 $14 {[%emt 0:01:10]} 28. Nd4 {[%emt 0:00:10]} a5 {[%emt 0:01:13]} 29. Qd2 {[%emt 0:02:40]} a4 {[%emt 0:01:37]} 30. a3 {[%emt 0:03:57]} (30. Nc6 a3 31. Nxb8 Rxb8 $17) 30... Na6 {[%emt 0:07:08]} 31. Qf2 {[%emt 0:02:31]} Re4 {[%emt 0:02:16]} 32. Nc6 $1 {[%emt 0:08:49]} (32. Qxf7+ Kh8 33. Nb5 Rxc4 $19) 32... Qxf2 {[%emt 0:01:31]} 33. Rxf2 {[%emt 0:00:01]} Rb3 {[%emt 0:00:11]} 34. Ka2 {[%emt 0:01:56]} Nc5 {[%emt 0:00:22]} (34... Rxc4 $2 35. Re2 h6 36. Na5 $18) 35. Rc2 {[%emt 0:01:47]} h6 {[%emt 0:03:58]} 36. Rf1 {[%emt 0:02:14]} g5 {[%emt 0:00:00]} 37. Kb1 {[%emt 0:02:01]} ({White should play} 37. Na5 $11) 37... Nd3 {[%emt 0:00:00]} (37... f5 $1 $15) 38. Na5 {[%emt 0:02:07]} Rb8 {[%emt 0:00:00]} 39. Rd2 {[%emt 0:03:10]} Nc5 {[%emt 0:00:20]} 40. Nc6 {[%emt 0:02:18]} (40. Rc2 $11) 40... Rb3 {[%emt 0:01:03]} 41. Rc2 {[%emt 0:30:10]} Nd3 {[%emt 0:08:40]} (41... f5 $1 $15) 42. Rd1 $11 {[%emt 0:00:00]} Nc5 $1 {[%emt 0:00:47]} 43. Na5 {[%emt 0:00:00]} Rb8 {[%emt 0:00:28]} 44. Ka2 {[%emt 0:00:00] [#]} (44. Nc6 $11 {keeps the balance.} Rb3 45. Rf1) 44... f5 {[%emt 0:03:16]} (44... Nb3 $1 $17 {[%cal Rb3a5]} 45. Nc6 Rbe8) 45. g3 $2 {[%emt 0:00:00]} (45. Kb1 $1 $15) 45... Nb3 {[%emt 0:01:44]} (45... Rb3 $1 $19 {[%cal Rb3g3]} 46. Rg2 Rd3 47. Rxd3 Nxd3) 46. Nc6 $17 {[%emt 0:00:00]} Rbe8 {[%emt 0:00:08]} 47. Bd2 {[%emt 0:00:00] [#]} Re2 {[%emt 0:01:01]} (47... f4 $1 $17 {[%cal Rf4g3]} 48. gxf4 gxf4) 48. Kb1 $1 $15 {[%emt 0:00:00]} Rg2 {[%emt 0:02:07]} 49. Bc3 $2 {[%emt 0:00:00]} ({White should try} 49. Bb4 $15 Ree2 50. Rxe2 Rxe2 51. Bc3 Bxc3 52. bxc3) 49... Rxg3 $19 {[%emt 0:01:27]} 50. Bxg7 $2 {[%emt 0:00:05]} (50. Bb4 {keeps fighting.}) 50... Kxg7 {[%emt 0:00:10]} 51. c5 {[%emt 0:00:59]} (51. Ka2 {was called for.}) 51... Rd3 $19 {[%emt 0:01:43]} (51... dxc5 52. Rc3 (52. d6 $2 Rd3 $19) 52... Rg2 (52... Rxc3 53. bxc3 c4 54. d6 $11) 53. Rc2 Rxc2 54. Kxc2 $14) (51... Nxc5 $2 52. Rxc5 dxc5 53. d6 $19) 52. Rg1 {[%emt 0:04:12]} (52. Rxd3 {gets mated.} Re1+ (52... Nxc5 $2 {loses.} 53. Rxc5 dxc5 54. d6 $18) (52... Nxc5 $2 {too greedy.} 53. Rxc5 dxc5 54. d6 $18)) 52... Nxc5 {[%emt 0:00:32]} (52... Rxd5 $2 53. cxd6 Rxd6 54. Ka2 $19) 53. h4 {[%emt 0:00:39]} g4 {[%emt 0:01:54]} 54. Rc4 {[%emt 0:01:15]} Kf6 {[%emt 0:02:14]} 55. Rf4 {[%emt 0:00:24]} Rxd5 {[%emt 0:06:31]} 56. Rgxg4 {[%emt 0:00:28]} Rd2 {[%emt 0:03:43]} 57. Rg1 {[%emt 0:01:08]} Ree2 {[%emt 0:01:08]} 58. Rb4 {[%emt 0:00:29]} Nb3 {[%emt 0:00:22]} 0-1

[Event "Sardinia World Festival-A 2024"]
[Site "Orosei"]
[Date "2024.04.30"]
[Round "4.20"]
[White "Bifulco, Michel"]
[Black "Costa, Leonardo"]
[Result "0-1"]
[ECO "C48"]
[WhiteElo "2303"]
[BlackElo "2476"]
[Annotator "TA"]
[PlyCount "134"]
[EventDate "2024.04.26"]
[EventType "swiss"]
[EventCountry "ITA"]
[SourceTitle "playchess.com"]
[Source "ChessBase"]
[SourceQuality "1"]
[TimeControl "40/5400+30:1800+30"]

{[%evp 45,134,-110,-106,-135,-70,-136,-153,-155,-100,-156,-143,-195,-197,-191,-128,-126,-66,-181,-94,-97,-97,-94,-94,-62,-80,-103,-89,-98,-98,-103,-18,-109,-110,-109,-106,-112,-102,-111,-104,-137,-91,-112,-20,-10,-11,-17,-14,-28,-19,-10,-9,-406,-406,-440,-440,-997,0,0,0,-702,-540,-1816,-1958,-2943,-2757,-4590,0,-187,-187,-187,-187,-187,-187,-187,-187,-29978,-29979,-29979,-29979,-29979,-29980,-29980,-29981,-29981,-29982,-29982,-29983,-29983,-29982,-29982,-29982]} 1. e4 {[%emt 0:00:04]} e5 {[%emt 0:00:04]} 2. Nf3 {[%emt 0:00:05]} Nc6 {[%emt 0:00:03]} 3. Nc3 {[%emt 0:00:07]} Nf6 {[%emt 0:00:04]} 4. Bb5 {[%emt 0:00:06]} Nd4 {[%emt 0:00:15]} 5. Bc4 {[%emt 0:00:10]} Bc5 {[%emt 0:00:29]} 6. Nxe5 {[%emt 0:03:16]} Qe7 {[%emt 0:04:09] C48: Four Knights: 4 Bb5, replies other than 4...Bb4.} 7. Nf3 {[%emt 0:00:31]} d5 {[%emt 0:01:23]} 8. Nxd5 {[%emt 0:00:23]} Qxe4+ {[%emt 0:01:25]} 9. Ne3 {[%emt 0:00:13]} Bg4 {[%emt 0:00:03]} 10. Be2 {[%emt 0:00:07]} Nxe2 {[%emt 0:01:17]} 11. Qxe2 {[%emt 0:00:08]} O-O-O {[%emt 0:00:05]} 12. d3 {[%emt 0:00:08]} Bxf3 {[%emt 0:00:03]} 13. Qxf3 {[%emt 0:00:25]} Qxf3 {[%emt 0:00:04]} 14. gxf3 {[%emt 0:00:06]} Rhe8 {[%emt 0:00:03]} 15. Kf1 {[%emt 0:02:35]} Nd5 {[%emt 0:07:09]} 16. Nxd5 {[%emt 0:04:11]} Rxd5 {[%emt 0:00:05]} 17. Be3 $146 {[%emt 0:13:21]} ({Predecessor:} 17. Bd2 Rf5 18. f4 Bd6 19. Rg1 g6 20. Rg5 Rf6 21. Re1 Rxe1+ 22. Kxe1 Bxf4 23. Bxf4 Rxf4 {0-1 Bon,M (2394)-Paravyan,D (2586) Titled Tuesday intern op 21st Feb Late blitz 2023 (1)}) 17... Bxe3 {[%emt 0:14:12]} 18. fxe3 {[%emt 0:00:19]} Rc5 {[%emt 0:12:12]} 19. Rc1 {[%emt 0:01:19]} Rxe3 {[%emt 0:00:04]} 20. Kf2 {[%emt 0:00:12]} Re6 {[%emt 0:00:40]} 21. Rhg1 {[%emt 0:05:06]} g6 {[%emt 0:07:52]} 22. c3 {[%emt 0:07:53]} Rh5 {[%emt 0:01:09]} 23. Rg2 {[%emt 0:00:52]} Rh3 {[%emt 0:00:10]} 24. Rh1 {[%emt 0:03:59]} a5 {[%emt 0:06:09]} (24... Rf6 $17 25. Rg3 Rh5) 25. d4 {[%emt 0:10:40] [#]} (25. Rg4 $15) 25... a4 $1 $17 {[%emt 0:01:09]} 26. Rd1 {[%emt 0:02:57]} Rb6 {[%emt 0:01:53]} (26... Rf6 $142 27. Rd3 Rf4) 27. Rd2 {[%emt 0:03:16]} (27. Ke3 $142) 27... Kd7 {[%emt 0:00:08]} 28. Ke3 {[%emt 0:01:33]} (28. c4 $17) 28... Re6+ $19 {[%emt 0:03:59]} 29. Kf2 {[%emt 0:00:10]} Rc6 {[%emt 0:12:50]} (29... b5 $19 30. Rd3 Rf6) 30. Rd3 $17 {[%emt 0:02:25]} Rb6 {[%emt 0:00:47]} (30... Rf6 $17 31. c4 Rf5) 31. Rd2 {[%emt 0:00:28]} (31. Kf1 $15) 31... Rb5 {[%emt 0:00:07]} ({Black should play} 31... Rf6 $19 32. Rd3 b5) 32. Ke3 $17 {[%emt 0:01:38]} Kd6 {[%emt 0:01:20]} 33. Rg3 {[%emt 0:01:54]} Rbh5 {[%emt 0:02:28]} 34. Rxh3 {[%emt 0:08:59]} Rxh3 {[%emt 0:00:04]} 35. c4 {[%emt 0:00:16]} Rh4 {[%emt 0:04:48]} 36. b3 {[%emt 0:05:30] [#]} a3 $1 {[%emt 0:00:12]} 37. b4 {[%emt 0:00:43]} g5 {[%emt 0:03:03]} (37... c6 $17 38. Rd3 Rxh2 39. c5+ (39. Rxa3 Rb2 $17) 39... Ke6 40. Rxa3 Rb2) 38. b5 {[%emt 0:08:06]} (38. Rd3 $11) 38... f5 $17 {[%emt 0:04:19]} 39. Rg2 {[%emt 0:03:38]} h6 {[%emt 0:03:32]} 40. Rd2 {[%emt 0:00:46]} Rh3 {[%emt 0:08:16]} 41. Rf2 {[%emt 0:38:09]} b6 {[%emt 0:32:13]} 42. Rc2 {[%emt 0:02:47]} Rh4 {[%emt 0:00:00]} (42... Ke6 $142 43. Rf2 h5) 43. Rd2 {[%emt 0:00:00]} c5 {[%emt 0:00:00]} (43... Ke6 $17 44. Rg2 Rh3) 44. bxc6 $11 {[%emt 0:00:00]} Kxc6 {[%emt 0:00:00]} 45. Rc2 {[%emt 0:00:00]} Rh3 {[%emt 0:00:00]} 46. c5 {[%emt 0:00:00]} bxc5 {[%emt 0:00:00]} 47. Rxc5+ {[%emt 0:00:00]} Kd6 {[%emt 0:00:00]} 48. Rxf5 $2 {[%emt 0:00:00][%mdl 8192]} (48. Rc3 $11) 48... Rxh2 $19 {[%emt 0:00:00]} 49. Ra5 {[%emt 0:00:00]} Rxa2 {[%emt 0:00:00]} 50. Ke4 {[%emt 0:00:00]} (50. Ra6+ $142 Kd5 51. Ra5+ Kc6 52. d5+ Kb7 53. Kd3) 50... Re2+ $2 {[%emt 0:00:00]} ({Better is} 50... Ra1 $19 51. Ra6+ Kc7) 51. Kd3 $11 {[%emt 0:00:00]} Ra2 $2 {[%emt 0:00:00][%mdl 8192]} (51... Rf2 $2 52. Ke3 Ra2 53. Ra6+ Kd5 54. Ra5+ Kc6 55. d5+ Kb7 56. Kd3 $19) (51... Rb2 $11 52. Rxa3 Rb6) 52. Ke4 $1 $19 {[%emt 0:00:00]} Kc6 {[%emt 0:00:00]} (52... Re2+ 53. Kf5 $15) 53. Kf5 {[%emt 0:03:49]} Ra1 {[%emt 0:00:00]} 54. Ra6+ {[%emt 0:03:23]} Kd5 {[%emt 0:00:00]} 55. Rxh6 {[%emt 0:00:18]} a2 $2 {[%emt 0:00:00]} (55... Kxd4 56. Ra6 $11) ({Black should try} 55... g4 $19 56. Rh2 gxf3) 56. Ra6 $2 {[%emt 0:00:25]} (56. Rh2 $1 $11) 56... g4 $19 {[%emt 0:00:00]} ({Not} 56... Kxd4 57. Ra5 $11) 57. Ra5+ {[%emt 0:00:39]} Kd6 {[%emt 0:03:02]} ({Inferior is} 57... Kxd4 58. fxg4 Rf1+ 59. Ke6 $11) 58. Ra6+ {[%emt 0:00:17]} Kc7 {[%emt 0:00:04]} 59. Ra7+ {[%emt 0:00:58]} Kb6 {[%emt 0:00:36]} 60. Rxa2 $2 {[%emt 0:00:16]} (60. Ra8 $19) 60... Rxa2 {[%emt 0:00:03]} 61. fxg4 {[%emt 0:00:08]} Rf2+ {[%emt 0:00:36]} 62. Ke6 {[%emt 0:00:41]} Rg2 {[%emt 0:00:03]} 63. Kf5 {[%emt 0:00:32]} Kc6 {[%emt 0:00:03]} 64. g5 {[%emt 0:00:08]} Kd6 {[%emt 0:00:37]} 65. g6 {[%emt 0:00:33]} Rf2+ {[%emt 0:01:02]} 66. Kg5 {[%emt 0:00:08]} Ke7 {[%emt 0:00:04]} 67. d5 {[%emt 0:00:35]} Kf8 {[%emt 0:00:05]} 0-1

[Event "Sardinia World Festival-A 2024"]
[Site "Orosei"]
[Date "2024.04.30"]
[Round "4.21"]
[White "Stoyanov, Tsvetan"]
[Black "Krawczyk, Flawian"]
[Result "1/2-1/2"]
[ECO "B90"]
[WhiteElo "2473"]
[BlackElo "2315"]
[Annotator "RC"]
[PlyCount "97"]
[EventDate "2024.04.26"]
[EventType "swiss"]
[EventCountry "ITA"]
[SourceTitle "playchess.com"]
[Source "ChessBase"]
[SourceQuality "1"]
[TimeControl "40/5400+30:1800+30"]

1. e4 {[%emt 0:00:03]} c5 {[%emt 0:01:47]} 2. Nf3 {[%emt 0:00:12]} d6 {[%emt 0:00:05]} 3. d4 {[%emt 0:00:34]} cxd4 {[%emt 0:00:06]} 4. Nxd4 {[%emt 0:00:03]} Nf6 {[%emt 0:00:09]} 5. Nc3 {[%emt 0:00:06]} a6 {[%emt 0:00:02]} 6. h3 {[%emt 0:00:39]} e5 {[%emt 0:00:04]} 7. Nb3 {[%emt 0:00:32]} Be6 {[%emt 0:00:05]} 8. Be3 {[%emt 0:04:49]} Be7 {[%emt 0:05:04]} 9. Qf3 {[%emt 0:01:01]} Nbd7 {[%emt 0:00:27]} 10. g4 {[%emt 0:00:44]} h6 {[%emt 0:00:13]} 11. O-O-O {[%emt 0:01:19]} Rc8 {[%emt 0:00:02]} 12. Nd5 {[%emt 0:00:52]} Nf8 {[%emt 0:00:05]} 13. Kb1 {[%emt 0:02:01]} Ng6 {[%emt 0:02:50]} 14. a3 {[%emt 0:01:20]} Nh4 {[%emt 0:09:03]} 15. Qe2 {[%emt 0:00:08]} Nxd5 {[%emt 0:08:35]} 16. exd5 {[%emt 0:00:07]} Bd7 {[%emt 0:00:03]} 17. f4 {[%emt 0:10:40]} exf4 {[%emt 0:07:08]} 18. Bxf4 {[%emt 0:00:02]} O-O {[%emt 0:00:11]} 19. Qd2 {[%emt 0:12:38]} Ng6 {[%emt 0:11:19]} 20. Bd3 {[%emt 0:05:44]} Ba4 {[%emt 0:06:19]} 21. Bf5 {[%emt 0:12:22]} Rc4 {[%emt 0:02:59]} 22. Be3 {[%emt 0:00:50]} Bf6 {[%emt 0:01:49]} 23. Na5 {[%emt 0:25:36]} Ne5 {[%emt 0:14:29]} 24. g5 {[%emt 0:10:56]} hxg5 {[%emt 0:01:42]} 25. Nxc4 {[%emt 0:00:04]} Nxc4 {[%emt 0:00:09]} 26. Qe2 {[%emt 0:00:01]} Bb5 {[%emt 0:12:30]} 27. Qh5 {[%emt 0:00:44]} g6 {[%emt 0:00:13]} 28. Bxg6 {[%emt 0:00:03]} fxg6 {[%emt 0:00:03]} 29. Qxg6+ {[%emt 0:00:01]} Bg7 {[%emt 0:00:25]} 30. Bd4 {[%emt 0:05:03]} Ne5 {[%emt 0:00:09]} 31. Bxe5 {[%emt 0:02:30]} dxe5 {[%emt 0:00:01]} 32. h4 {[%emt 0:00:17]} Qf6 {[%emt 0:01:24]} 33. Qxg5 {[%emt 0:03:03]} Qxg5 {[%emt 0:17:30]} 34. hxg5 Be2 {[%emt 0:00:00]} 35. Rd2 {[%emt 0:00:26]} Bf3 {[%emt 0:00:00]} 36. Re1 {[%emt 0:00:53]} Rd8 {[%emt 0:00:00]} 37. c4 {[%emt 0:01:09]} e4 {[%emt 0:00:00]} 38. c5 {[%emt 0:01:21]} Be5 {[%emt 0:00:00]} 39. d6 {[%emt 0:00:29]} Bg3 {[%emt 0:00:00]} 40. Rf1 {[%emt 0:00:21]} Bf4 {[%emt 0:00:00]} 41. Rd4 {[%emt 0:04:58]} Kg7 {[%emt 0:02:00]} 42. Rxf3 {[%emt 0:08:15]} exf3 {[%emt 0:00:07]} 43. Rxf4 {[%emt 0:01:07]} Rf8 {[%emt 0:00:03]} 44. d7 {[%emt 0:00:51]} Rxf4 {[%emt 0:00:04]} 45. d8=Q {[%emt 0:00:06]} f2 {[%emt 0:00:06]} 46. Qd7+ {[%emt 0:03:53]} Rf7 {[%emt 0:00:17]} 47. Qd4+ {[%emt 0:00:03]} Kg8 {[%emt 0:00:08]} 48. Qd8+ {[%emt 0:01:33]} Kg7 {[%emt 0:00:05]} 49. Qd4+ {[%emt 0:00:04]} 1/2-1/2

[Event "Sardinia World Festival-A 2024"]
[Site "Orosei"]
[Date "2024.04.30"]
[Round "4.22"]
[White "Kanyamarala, Trisha"]
[Black "Royal, Shreyas"]
[Result "1/2-1/2"]
[ECO "E92"]
[WhiteElo "2285"]
[BlackElo "2455"]
[Annotator "RC"]
[PlyCount "127"]
[EventDate "2024.04.26"]
[EventType "swiss"]
[EventCountry "ITA"]
[SourceTitle "playchess.com"]
[Source "ChessBase"]
[SourceQuality "1"]
[TimeControl "40/5400+30:1800+30"]

1. d4 {[%emt 0:00:09]} Nf6 {[%emt 0:00:06]} 2. c4 {[%emt 0:00:13]} g6 {[%emt 0:00:22]} 3. Nc3 {[%emt 0:00:23]} Bg7 {[%emt 0:00:06]} 4. e4 {[%emt 0:00:21]} d6 {[%emt 0:00:07]} 5. Nf3 {[%emt 0:00:58]} O-O {[%emt 0:00:09]} 6. Be2 {[%emt 0:00:45]} e5 {[%emt 0:00:05]} 7. Be3 {[%emt 0:00:43]} exd4 {[%emt 0:00:56]} 8. Nxd4 {[%emt 0:00:38]} Re8 {[%emt 0:00:31]} 9. f3 {[%emt 0:03:04]} c6 {[%emt 0:00:22]} 10. Bf2 {[%emt 0:01:44]} d5 {[%emt 0:00:17]} 11. exd5 {[%emt 0:01:10]} cxd5 {[%emt 0:00:06]} 12. O-O {[%emt 0:00:52]} Nc6 {[%emt 0:02:13]} 13. c5 {[%emt 0:00:59]} Nh5 {[%emt 0:00:43]} 14. Qd2 {[%emt 0:03:27]} Be5 {[%emt 0:00:08]} 15. g3 {[%emt 0:14:32]} Ng7 {[%emt 0:01:10]} 16. Rfe1 {[%emt 0:14:44]} Bxd4 {[%emt 0:31:05]} 17. Bxd4 {[%emt 0:00:13]} Nxd4 {[%emt 0:02:41]} 18. Qxd4 {[%emt 0:00:06]} Be6 {[%emt 0:00:12]} 19. Bd3 {[%emt 0:04:42]} Rc8 {[%emt 0:08:57]} 20. Nb5 {[%emt 0:04:47]} b6 {[%emt 0:00:10]} 21. b4 {[%emt 0:03:22]} Re7 {[%emt 0:00:18]} 22. Rac1 {[%emt 0:07:49]} bxc5 {[%emt 0:02:46]} 23. bxc5 {[%emt 0:02:19]} Ne8 {[%emt 0:06:04]} 24. Qh4 {[%emt 0:09:10]} f6 {[%emt 0:04:20]} 25. Nxa7 {[%emt 0:08:16]} Rxa7 {[%emt 0:00:05]} 26. Rxe6 {[%emt 0:00:07]} Qa5 {[%emt 0:00:02]} 27. Qd4 {[%emt 0:01:42]} Qxa2 {[%emt 0:04:05]} 28. Re2 {[%emt 0:02:59]} Qb3 {[%emt 0:06:08]} 29. Rb1 {[%emt 0:02:36]} Qa3 {[%emt 0:00:39]} 30. Qxd5+ {[%emt 0:00:18]} Kg7 {[%emt 0:02:27]} 31. Bb5 {[%emt 0:06:37]} Rxc5 {[%emt 0:00:54]} 32. Qd2 {[%emt 0:04:28]} Nd6 {[%emt 0:03:23]} 33. Re3 {[%emt 0:01:19]} Qa2 {[%emt 0:00:11]} 34. Rb2 {[%emt 0:00:43]} Qa1+ {[%emt 0:25:42]} 35. Re1 {[%emt 0:00:27]} Qa5 {[%emt 0:00:00]} 36. Re7+ {[%emt 0:00:38]} Nf7 {[%emt 0:00:00]} 37. Qxa5 {[%emt 0:00:52]} Rxa5 {[%emt 0:00:00]} 38. Be8 {[%emt 0:00:13]} Kf8 {[%emt 0:00:00]} 39. Rxf7+ {[%emt 0:00:36]} Kxe8 {[%emt 0:00:00]} 40. Rxh7 {[%emt 0:00:28]} Rab5 {[%emt 0:00:00]} 41. Ra2 {[%emt 0:05:07]} Ra5 {[%emt 0:00:00]} 42. Rxa5 {[%emt 0:00:58]} Rxa5 {[%emt 0:00:00]} 43. Rg7 {[%emt 0:01:35]} g5 {[%emt 0:00:00]} 44. Kg2 {[%emt 0:01:59]} Ra2+ {[%emt 0:00:00]} 45. Kh3 {[%emt 0:00:51]} Kf8 {[%emt 0:00:00]} 46. Rh7 {[%emt 0:00:55]} Kg8 {[%emt 0:00:00]} 47. Rd7 {[%emt 0:00:48]} Ra4 {[%emt 0:00:00]} 48. Re7 {[%emt 0:04:38]} Rb4 {[%emt 0:00:00]} 49. Rd7 {[%emt 0:03:44]} Ra4 {[%emt 0:00:00]} 50. Re7 {[%emt 0:02:03]} Rb4 {[%emt 0:00:00]} 51. Re4 {[%emt 0:01:06]} Rb5 {[%emt 0:00:00]} 52. Rc4 {[%emt 0:05:09]} Kg7 {[%emt 0:00:00]} 53. Kg4 {[%emt 0:00:43]} Kg6 {[%emt 0:00:00]} 54. Rc6 {[%emt 0:02:04]} Rb4+ {[%emt 0:00:00]} 55. f4 {[%emt 0:00:23]} gxf4 {[%emt 0:00:00]} 56. gxf4 {[%emt 0:00:05]} Rb5 {[%emt 0:00:00]} 57. h4 {[%emt 0:00:44]} Ra5 {[%emt 0:00:00]} 58. Rb6 {[%emt 0:01:07]} Rc5 {[%emt 0:00:00]} 59. Ra6 {[%emt 0:02:41]} Rb5 {[%emt 0:00:00]} 60. Re6 {[%emt 0:02:13]} Ra5 {[%emt 0:00:00]} 61. Rc6 {[%emt 0:01:10]} Rb5 {[%emt 0:00:00]} 62. Rd6 {[%emt 0:00:24]} Ra5 {[%emt 0:00:00]} 63. Rc6 {[%emt 0:00:10]} Rb5 {[%emt 0:00:00]} 64. Rd6 {[%emt 0:00:04]} 1/2-1/2